[Event "Early-Titled-Tuesday-Blitz-February-20-2024"]
[Site "Chess.com"]
[Date "2024.02.20"]
[Round "4"]
[White "ChEsper99"]
[Black "Kostya0705"]
[Result "1-0"]
[WhiteElo "2224"]
[BlackElo "2623"]
[TimeControl "180+1"]
[EndTime "8:36:55 PST"]
[Termination "ChEsper99 won by resignation"]

1. e4 {[%clk 0:03:00.9]} 1... c5 {[%clk 0:03:00]} 2. Nf3 {[%clk 0:03:01.3]} 2...
e6 {[%clk 0:03:00.6]} 3. c3 {[%clk 0:03:01.3]} 3... d5 {[%clk 0:03:00.7]} 4.
exd5 {[%clk 0:03:01.7]} 4... Qxd5 {[%clk 0:03:01.6]} 5. d4 {[%clk 0:03:02.1]}
5... Nf6 {[%clk 0:03:02.1]} 6. Be3 {[%clk 0:02:54.3]} 6... cxd4 {[%clk
0:03:01.6]} 7. cxd4 {[%clk 0:02:54.3]} 7... Be7 {[%clk 0:03:00.6]} 8. Nc3 {[%clk
0:02:54.3]} 8... Qd6 {[%clk 0:03:00.5]} 9. Bd3 {[%clk 0:02:46]} 9... O-O {[%clk
0:02:59.7]} 10. O-O {[%clk 0:02:46.1]} 10... Nc6 {[%clk 0:02:59.9]} 11. Qe2
{[%clk 0:02:41.8]} 11... a6 {[%clk 0:03:00.3]} 12. Rfd1 {[%clk 0:02:36]} 12...
h6 {[%clk 0:03:00.7]} 13. Rac1 {[%clk 0:02:34.5]} 13... Rd8 {[%clk 0:03:00.6]}
14. Ne4 {[%clk 0:02:34.5]} 14... Nxe4 {[%clk 0:03:00.3]} 15. Bxe4 {[%clk
0:02:33.9]} 15... Nb4 {[%clk 0:02:59.3]} 16. a3 {[%clk 0:01:28.7]} 16... Nd5
{[%clk 0:02:58.3]} 17. Bb1 {[%clk 0:01:23]} 17... b6 {[%clk 0:02:53.4]} 18. Ne5
{[%clk 0:01:10.6]} 18... Bb7 {[%clk 0:02:53]} 19. Qd3 {[%clk 0:01:10.1]} 19...
Nf6 {[%clk 0:02:52.9]} 20. Nc4 {[%clk 0:01:06.5]} 20... Qd5 {[%clk 0:02:52.3]}
21. f3 {[%clk 0:01:03.6]} 21... Qb5 {[%clk 0:02:46.9]} 22. b3 {[%clk 0:00:56.1]}
22... Rac8 {[%clk 0:02:29.1]} 23. a4 {[%clk 0:00:55.4]} 23... Qb4 {[%clk
0:02:29]} 24. Bd2 {[%clk 0:00:51.9]} 24... Rxc4 {[%clk 0:02:10]} 25. Bxb4 {[%clk
0:00:49.8]} 25... Rxb4 {[%clk 0:02:10.9]} 26. Rc7 {[%clk 0:00:47.2]} 26... Rdxd4
{[%clk 0:02:00.1]} 27. Qxd4 {[%clk 0:00:42.1]} 27... Rxd4 {[%clk 0:01:59.6]} 28.
Rxd4 {[%clk 0:00:38.1]} 28... Bc5 {[%clk 0:01:59.5]} 29. Rxc5 {[%clk 0:00:33.3]}
29... bxc5 {[%clk 0:02:00.4]} 30. Rd8+ {[%clk 0:00:29]} 1-0

[Event "Early-Titled-Tuesday-Blitz-February-20-2024"]
[Site "Chess.com"]
[Date "2024.02.20"]
[Round "4"]
[White "Juicy_Fork"]
[Black "Svet_1502"]
[Result "1-0"]
[WhiteElo "2486"]
[BlackElo "2227"]
[TimeControl "180+1"]
[EndTime "8:37:05 PST"]
[Termination "Juicy_Fork won by resignation"]

1. e4 {[%clk 0:03:00.9]} 1... c5 {[%clk 0:02:58.4]} 2. Nf3 {[%clk 0:03:00.9]}
2... e6 {[%clk 0:02:54.9]} 3. d4 {[%clk 0:03:00.9]} 3... cxd4 {[%clk 0:02:55.8]}
4. Nxd4 {[%clk 0:03:01.8]} 4... Nf6 {[%clk 0:02:55.7]} 5. Nc3 {[%clk 0:03:02.1]}
5... Nc6 {[%clk 0:02:55.5]} 6. a3 {[%clk 0:03:02]} 6... d6 {[%clk 0:02:34.4]} 7.
Be3 {[%clk 0:02:57.6]} 7... Be7 {[%clk 0:02:34.3]} 8. f3 {[%clk 0:02:56.3]} 8...
O-O {[%clk 0:02:30.9]} 9. Qd2 {[%clk 0:02:56.6]} 9... a6 {[%clk 0:02:30.7]} 10.
O-O-O {[%clk 0:02:56.5]} 10... Bd7 {[%clk 0:02:25.3]} 11. g4 {[%clk 0:02:54.9]}
11... b5 {[%clk 0:02:23.5]} 12. g5 {[%clk 0:02:49.4]} 12... Ne8 {[%clk 0:02:19]}
13. h4 {[%clk 0:02:49.3]} 13... Rc8 {[%clk 0:01:55.7]} 14. Nxc6 {[%clk
0:02:36.5]} 14... Bxc6 {[%clk 0:01:53.5]} 15. h5 {[%clk 0:02:36.1]} 15... g6
{[%clk 0:01:29.7]} 16. Qh2 {[%clk 0:02:22.5]} 16... Bxg5 {[%clk 0:01:12.3]} 17.
f4 {[%clk 0:02:20.1]} 17... Be7 {[%clk 0:00:17.4]} 18. hxg6 {[%clk 0:02:18.6]}
18... Nf6 {[%clk 0:00:17.1]} 19. g7 {[%clk 0:02:10.3]} 19... Re8 {[%clk
0:00:16.5]} 20. Bd4 {[%clk 0:02:06.4]} 20... e5 {[%clk 0:00:06.1]} 21. fxe5
{[%clk 0:02:06.3]} 21... dxe5 {[%clk 0:00:06.2]} 22. Bxe5 {[%clk 0:02:06.1]}
22... Qxd1+ {[%clk 0:00:02.6]} 23. Kxd1 {[%clk 0:02:01.1]} 1-0

[Event "Early-Titled-Tuesday-Blitz-February-20-2024"]
[Site "Chess.com"]
[Date "2024.02.20"]
[Round "4"]
[White "Korchmar_Vasiliy"]
[Black "Manukyan_Artak"]
[Result "1-0"]
[WhiteElo "2774"]
[BlackElo "2549"]
[TimeControl "180+1"]
[EndTime "8:37:07 PST"]
[Termination "Korchmar_Vasiliy won by checkmate"]

1. e4 {[%clk 0:03:00.9]} 1... c6 {[%clk 0:02:56.6]} 2. d4 {[%clk 0:03:00.9]}
2... d5 {[%clk 0:02:56.5]} 3. exd5 {[%clk 0:03:01.8]} 3... cxd5 {[%clk
0:02:56.6]} 4. Bd3 {[%clk 0:03:02.5]} 4... Nc6 {[%clk 0:02:56.4]} 5. c3 {[%clk
0:03:03.2]} 5... e5 {[%clk 0:02:56.7]} 6. dxe5 {[%clk 0:03:02.5]} 6... Nxe5
{[%clk 0:02:57.6]} 7. Qe2 {[%clk 0:02:43.3]} 7... Qe7 {[%clk 0:02:56.8]} 8. Bb5+
{[%clk 0:02:19.8]} 8... Nc6 {[%clk 0:02:56.3]} 9. Be3 {[%clk 0:02:07.7]} 9...
Nf6 {[%clk 0:02:51.2]} 10. Nf3 {[%clk 0:02:07.6]} 10... Ng4 {[%clk 0:02:46.3]}
11. O-O {[%clk 0:02:05.6]} 11... Nxe3 {[%clk 0:02:46.3]} 12. fxe3 {[%clk
0:02:06.5]} 12... Bd7 {[%clk 0:02:44.4]} 13. Nd4 {[%clk 0:01:56.5]} 13... O-O-O
{[%clk 0:02:40.1]} 14. Nxc6 {[%clk 0:01:45.3]} 14... Bxc6 {[%clk 0:02:40.1]} 15.
Bxc6 {[%clk 0:01:44.6]} 15... bxc6 {[%clk 0:02:41]} 16. Nd2 {[%clk 0:01:23.2]}
16... f6 {[%clk 0:02:34.7]} 17. Nb3 {[%clk 0:01:20.3]} 17... Re8 {[%clk
0:02:17.4]} 18. Kh1 {[%clk 0:01:17.9]} 18... Kb7 {[%clk 0:02:14]} 19. Na5+
{[%clk 0:01:04.2]} 19... Ka8 {[%clk 0:02:08.6]} 20. Nxc6 {[%clk 0:01:02.9]}
20... Qxe3 {[%clk 0:02:08.5]} 21. Qb5 {[%clk 0:00:56.7]} 21... Qb6 {[%clk
0:02:07.6]} 22. Qxd5 {[%clk 0:00:55.8]} 22... Qb7 {[%clk 0:02:05.3]} 23. Rae1
{[%clk 0:00:47.9]} 23... Rc8 {[%clk 0:02:01.8]} 24. Re6 {[%clk 0:00:44.8]} 24...
g5 {[%clk 0:01:54.1]} 25. Rfxf6 {[%clk 0:00:37]} 25... Bg7 {[%clk 0:01:48.5]}
26. Rf7 {[%clk 0:00:34.8]} 26... Rhd8 {[%clk 0:01:37.4]} 27. Rxb7 {[%clk
0:00:32.5]} 27... Rxd5 {[%clk 0:01:36.6]} 28. Rxa7# {[%clk 0:00:32.9]} 1-0

[Event "Early-Titled-Tuesday-Blitz-February-20-2024"]
[Site "Chess.com"]
[Date "2024.02.20"]
[Round "4"]
[White "Akylbek2021"]
[Black "KerryStead"]
[Result "1-0"]
[WhiteElo "2277"]
[BlackElo "2028"]
[TimeControl "180+1"]
[EndTime "8:37:09 PST"]
[Termination "Akylbek2021 won on time"]

1. e4 {[%clk 0:03:00.9]} 1... c6 {[%clk 0:02:56.2]} 2. Nf3 {[%clk 0:03:01.1]}
2... d5 {[%clk 0:02:55.8]} 3. d3 {[%clk 0:03:01.7]} 3... Bg4 {[%clk 0:02:54.7]}
4. Be2 {[%clk 0:02:59.8]} 4... e6 {[%clk 0:01:50.5]} 5. O-O {[%clk 0:02:58.1]}
5... Nf6 {[%clk 0:01:48.7]} 6. Nbd2 {[%clk 0:02:57.3]} 6... Nbd7 {[%clk
0:01:47.2]} 7. h3 {[%clk 0:02:56.3]} 7... Bxf3 {[%clk 0:01:46.8]} 8. Bxf3 {[%clk
0:02:55.7]} 8... Bd6 {[%clk 0:01:45.8]} 9. c3 {[%clk 0:02:55.6]} 9... Ne5 {[%clk
0:01:45.3]} 10. Be2 {[%clk 0:02:55.4]} 10... dxe4 {[%clk 0:01:44.7]} 11. dxe4
{[%clk 0:02:54.3]} 11... Qc7 {[%clk 0:01:23.2]} 12. Qc2 {[%clk 0:02:49.9]} 12...
O-O-O {[%clk 0:01:16.4]} 13. b4 {[%clk 0:02:46.3]} 13... Ng6 {[%clk 0:01:03.7]}
14. Nc4 {[%clk 0:02:40.1]} 14... Nf4 {[%clk 0:00:57.7]} 15. Nxd6+ {[%clk
0:02:31.9]} 15... Qxd6 {[%clk 0:00:58.6]} 16. Bf3 {[%clk 0:02:31]} 16... g5
{[%clk 0:00:52.7]} 17. Be3 {[%clk 0:02:29.3]} 17... a6 {[%clk 0:00:50.5]} 18.
Rfd1 {[%clk 0:02:29.6]} 18... Qc7 {[%clk 0:00:49]} 19. a4 {[%clk 0:02:28.9]}
19... h6 {[%clk 0:00:40.9]} 20. b5 {[%clk 0:02:25.4]} 20... cxb5 {[%clk
0:00:29.6]} 21. axb5 {[%clk 0:02:26.3]} 21... Rd6 {[%clk 0:00:10.4]} 22. bxa6
{[%clk 0:02:23.9]} 22... Rxa6 {[%clk 0:00:08.2]} 23. Rxa6 {[%clk 0:02:21.4]}
23... bxa6 {[%clk 0:00:09.1]} 24. Qa4 {[%clk 0:02:21.8]} 24... Qb7 {[%clk
0:00:06.9]} 25. e5 {[%clk 0:02:16.3]} 25... N6d5 {[%clk 0:00:03.9]} 26. c4
{[%clk 0:02:13.5]} 1-0

[Event "Early-Titled-Tuesday-Blitz-February-20-2024"]
[Site "Chess.com"]
[Date "2024.02.20"]
[Round "4"]
[White "Zavgorodniy_Sergiy"]
[Black "falzehope0"]
[Result "1-0"]
[WhiteElo "2612"]
[BlackElo "2400"]
[TimeControl "180+1"]
[EndTime "8:37:18 PST"]
[Termination "Zavgorodniy_Sergiy won by resignation"]

1. d4 {[%clk 0:02:42.6]} 1... e6 {[%clk 0:02:59]} 2. c4 {[%clk 0:02:41.8]} 2...
d5 {[%clk 0:02:58.9]} 3. Nf3 {[%clk 0:02:40.4]} 3... c6 {[%clk 0:02:58.9]} 4. e3
{[%clk 0:02:40.6]} 4... Bd6 {[%clk 0:02:55.3]} 5. g3 {[%clk 0:02:40.1]} 5... f5
{[%clk 0:02:53.8]} 6. Bg2 {[%clk 0:02:40.3]} 6... Nf6 {[%clk 0:02:54]} 7. O-O
{[%clk 0:02:40.4]} 7... O-O {[%clk 0:02:53.7]} 8. b3 {[%clk 0:02:40.6]} 8... Qe7
{[%clk 0:02:46.9]} 9. a4 {[%clk 0:02:40.5]} 9... a5 {[%clk 0:02:36.2]} 10. Ba3
{[%clk 0:02:40.5]} 10... Na6 {[%clk 0:02:30.4]} 11. Bxd6 {[%clk 0:02:39.7]}
11... Qxd6 {[%clk 0:02:30.2]} 12. Nbd2 {[%clk 0:02:40.6]} 12... Nb4 {[%clk
0:02:28.2]} 13. Ne5 {[%clk 0:02:40.1]} 13... Ne4 {[%clk 0:02:25.2]} 14. Nxe4
{[%clk 0:02:31.3]} 14... fxe4 {[%clk 0:02:24.6]} 15. f3 {[%clk 0:02:27.1]} 15...
exf3 {[%clk 0:02:17.9]} 16. Rxf3 {[%clk 0:02:26.8]} 16... Bd7 {[%clk 0:02:14.3]}
17. Qd2 {[%clk 0:02:19.2]} 17... Rxf3 {[%clk 0:02:10.8]} 18. Bxf3 {[%clk
0:02:20.1]} 18... Be8 {[%clk 0:02:10.3]} 19. Rf1 {[%clk 0:02:14.2]} 19... Bg6
{[%clk 0:02:10]} 20. Bg4 {[%clk 0:01:55.9]} 20... Bc2 {[%clk 0:01:55.5]} 21. c5
{[%clk 0:01:38.3]} 21... Qe7 {[%clk 0:01:37.7]} 22. Rf7 {[%clk 0:01:37.3]} 22...
Qe8 {[%clk 0:01:37]} 23. Rxb7 {[%clk 0:01:06.7]} 23... Bxb3 {[%clk 0:01:32.6]}
24. e4 {[%clk 0:01:06.5]} 24... Bxa4 {[%clk 0:01:25.6]} 25. Qg5 {[%clk
0:01:02.6]} 25... Qf8 {[%clk 0:01:05.3]} 26. Bxe6+ {[%clk 0:01:02.2]} 26... Kh8
{[%clk 0:01:04.7]} 27. Ng6+ {[%clk 0:01:02.2]} 1-0

[Event "Early-Titled-Tuesday-Blitz-February-20-2024"]
[Site "Chess.com"]
[Date "2024.02.20"]
[Round "4"]
[White "NewYearGirl"]
[Black "ninguno46"]
[Result "0-1"]
[WhiteElo "2362"]
[BlackElo "2544"]
[TimeControl "180+1"]
[EndTime "8:37:20 PST"]
[Termination "ninguno46 won by resignation"]

1. e4 {[%clk 0:02:56.2]} 1... c5 {[%clk 0:02:56.9]} 2. Nf3 {[%clk 0:02:56.1]}
2... Nc6 {[%clk 0:02:56]} 3. d4 {[%clk 0:02:56.4]} 3... cxd4 {[%clk 0:02:56.2]}
4. Nxd4 {[%clk 0:02:57.3]} 4... g6 {[%clk 0:02:56.5]} 5. c4 {[%clk 0:02:57.1]}
5... Nf6 {[%clk 0:02:55.6]} 6. Nc3 {[%clk 0:02:56.2]} 6... d6 {[%clk 0:02:55.8]}
7. Be3 {[%clk 0:02:46.7]} 7... Ng4 {[%clk 0:02:54.6]} 8. Be2 {[%clk 0:02:45.2]}
8... Nxe3 {[%clk 0:02:53.8]} 9. fxe3 {[%clk 0:02:44.5]} 9... Bh6 {[%clk
0:02:52.9]} 10. Nxc6 {[%clk 0:02:42.8]} 10... bxc6 {[%clk 0:02:51.6]} 11. O-O
{[%clk 0:02:32.3]} 11... Bxe3+ {[%clk 0:02:50.1]} 12. Kh1 {[%clk 0:02:32.8]}
12... O-O {[%clk 0:02:48]} 13. Rf3 {[%clk 0:02:31.2]} 13... Bh6 {[%clk
0:02:47.1]} 14. c5 {[%clk 0:02:23.7]} 14... dxc5 {[%clk 0:02:41]} 15. Qxd8
{[%clk 0:02:23.2]} 15... Rxd8 {[%clk 0:02:40.4]} 16. Bc4 {[%clk 0:02:23.4]}
16... e6 {[%clk 0:02:39.5]} 17. Raf1 {[%clk 0:02:18.2]} 17... Rf8 {[%clk
0:02:38.5]} 18. e5 {[%clk 0:02:15]} 18... Bg7 {[%clk 0:02:37.3]} 19. Ne4 {[%clk
0:02:07.1]} 19... Bxe5 {[%clk 0:02:35.2]} 20. Nxc5 {[%clk 0:01:58]} 20... a5
{[%clk 0:02:31.3]} 21. b3 {[%clk 0:01:54.9]} 21... Ra7 {[%clk 0:02:29.9]} 22.
Nxe6 {[%clk 0:01:34.4]} 22... Bxe6 {[%clk 0:02:28.2]} 23. Bxe6 {[%clk
0:01:34.5]} 23... Kg7 {[%clk 0:02:28.4]} 24. Bc4 {[%clk 0:01:33.6]} 24... f5
{[%clk 0:02:27]} 25. Re3 {[%clk 0:01:28.3]} 25... Re7 {[%clk 0:02:26.2]} 26.
Rfe1 {[%clk 0:01:27.4]} 26... Kf6 {[%clk 0:02:25.9]} 27. g3 {[%clk 0:01:25.9]}
27... Rd8 {[%clk 0:02:25.2]} 28. Kg2 {[%clk 0:01:25]} 28... h5 {[%clk
0:02:24.3]} 29. Kf3 {[%clk 0:01:11.7]} 29... Rd4 {[%clk 0:02:23.2]} 30. Rd3
{[%clk 0:01:06]} 30... c5 {[%clk 0:02:21.9]} 31. Rde3 {[%clk 0:01:02.9]} 31...
h4 {[%clk 0:02:18.4]} 32. R1e2 {[%clk 0:00:49.2]} 32... g5 {[%clk 0:02:17]} 33.
Rd3 {[%clk 0:00:41.8]} 33... g4+ {[%clk 0:02:16.3]} 34. Kg2 {[%clk 0:00:37.9]}
34... h3+ {[%clk 0:02:14.4]} 35. Kf1 {[%clk 0:00:38]} 35... Red7 {[%clk
0:02:13.7]} 36. Red2 {[%clk 0:00:36.6]} 36... Kg5 {[%clk 0:02:06.3]} 37. Ke2
{[%clk 0:00:37]} 37... f4 {[%clk 0:02:03]} 38. gxf4+ {[%clk 0:00:37.2]} 38...
Bxf4 {[%clk 0:02:02.7]} 39. Rxd4 {[%clk 0:00:36.3]} 39... cxd4 {[%clk
0:02:02.7]} 0-1

[Event "Early-Titled-Tuesday-Blitz-February-20-2024"]
[Site "Chess.com"]
[Date "2024.02.20"]
[Round "4"]
[White "tsaruk_maks"]
[Black "Predo63"]
[Result "1-0"]
[WhiteElo "2740"]
[BlackElo "2539"]
[TimeControl "180+1"]
[EndTime "8:37:21 PST"]
[Termination "tsaruk_maks won by resignation"]

1. e4 {[%clk 0:03:00.9]} 1... c6 {[%clk 0:02:59.9]} 2. d4 {[%clk 0:03:00.3]}
2... d5 {[%clk 0:03:00.2]} 3. e5 {[%clk 0:03:00.2]} 3... g6 {[%clk 0:03:00.4]}
4. Bd3 {[%clk 0:02:57.5]} 4... Na6 {[%clk 0:02:59.6]} 5. c3 {[%clk 0:02:56]}
5... Nc7 {[%clk 0:02:59.7]} 6. h3 {[%clk 0:02:53.8]} 6... Bf5 {[%clk 0:02:59.5]}
7. Bxf5 {[%clk 0:02:50.5]} 7... gxf5 {[%clk 0:02:59]} 8. Qh5 {[%clk 0:02:51.4]}
8... e6 {[%clk 0:02:58]} 9. Bg5 {[%clk 0:02:49.6]} 9... Be7 {[%clk 0:02:57.2]}
10. Nf3 {[%clk 0:02:50.1]} 10... h6 {[%clk 0:02:52.4]} 11. Bf4 {[%clk
0:02:39.1]} 11... Bf8 {[%clk 0:02:47.7]} 12. Nbd2 {[%clk 0:02:24.4]} 12... Bg7
{[%clk 0:02:47.8]} 13. Nb3 {[%clk 0:02:18]} 13... Ne7 {[%clk 0:02:46.8]} 14. g4
{[%clk 0:02:17.1]} 14... b6 {[%clk 0:02:44.6]} 15. Rg1 {[%clk 0:02:14.8]} 15...
Qd7 {[%clk 0:02:42.7]} 16. O-O-O {[%clk 0:01:52.4]} 16... a5 {[%clk 0:02:42.4]}
17. gxf5 {[%clk 0:01:40.4]} 17... Nxf5 {[%clk 0:02:41.6]} 18. Nh4 {[%clk
0:01:40.9]} 18... Bf8 {[%clk 0:02:36.7]} 19. Nxf5 {[%clk 0:01:39.8]} 19... exf5
{[%clk 0:02:36.4]} 20. e6 {[%clk 0:01:37.2]} 20... Nxe6 {[%clk 0:02:32.4]} 21.
Be5 {[%clk 0:01:37.1]} 21... Rh7 {[%clk 0:02:25.1]} 22. Qxf5 {[%clk 0:01:37.6]}
22... Rg7 {[%clk 0:02:17.2]} 23. Bxg7 {[%clk 0:01:35.6]} 23... Bxg7 {[%clk
0:02:15.9]} 24. Nd2 {[%clk 0:00:51.7]} 24... O-O-O {[%clk 0:02:12.8]} 25. Nf3
{[%clk 0:00:51.6]} 25... a4 {[%clk 0:02:10.3]} 26. Ne5 {[%clk 0:00:49.1]} 26...
Bxe5 {[%clk 0:02:10.1]} 27. Qxe5 {[%clk 0:00:48.9]} 27... a3 {[%clk 0:02:08.5]}
28. b3 {[%clk 0:00:48.7]} 28... Kb7 {[%clk 0:02:05.7]} 29. f4 {[%clk 0:00:46.5]}
29... b5 {[%clk 0:02:02.5]} 30. h4 {[%clk 0:00:43.7]} 30... Kb6 {[%clk
0:01:57.5]} 31. f5 {[%clk 0:00:41.8]} 31... Nc7 {[%clk 0:01:57.4]} 32. Rde1
{[%clk 0:00:38.5]} 32... Ne8 {[%clk 0:01:55.7]} 33. Qe7 {[%clk 0:00:37.5]} 33...
Nd6 {[%clk 0:01:55.7]} 34. Qxd7 {[%clk 0:00:37.5]} 34... Rxd7 {[%clk 0:01:55.9]}
35. Re5 {[%clk 0:00:35.7]} 35... f6 {[%clk 0:01:53.8]} 36. Re6 {[%clk
0:00:33.5]} 36... Nxf5 {[%clk 0:01:54.3]} 37. Rxf6 {[%clk 0:00:32.5]} 37... Nxh4
{[%clk 0:01:54.5]} 38. Rg4 {[%clk 0:00:33]} 1-0

[Event "Early-Titled-Tuesday-Blitz-February-20-2024"]
[Site "Chess.com"]
[Date "2024.02.20"]
[Round "4"]
[White "Al_Shima"]
[Black "santosalberto1987"]
[Result "1-0"]
[WhiteElo "2395"]
[BlackElo "2571"]
[TimeControl "180+1"]
[EndTime "8:37:22 PST"]
[Termination "Al_Shima won by resignation"]

1. d4 {[%clk 0:03:00]} 1... d5 {[%clk 0:02:54.5]} 2. Nc3 {[%clk 0:03:00.1]} 2...
Nf6 {[%clk 0:02:54.2]} 3. Bf4 {[%clk 0:03:00.6]} 3... e6 {[%clk 0:02:53.1]} 4.
Nb5 {[%clk 0:03:00.6]} 4... Bb4+ {[%clk 0:02:53.5]} 5. c3 {[%clk 0:03:00.8]}
5... Ba5 {[%clk 0:02:54]} 6. a4 {[%clk 0:03:01.4]} 6... a6 {[%clk 0:02:50]} 7.
b4 {[%clk 0:02:59.7]} 7... axb5 {[%clk 0:02:49.7]} 8. axb5 {[%clk 0:02:59.7]}
8... Ne4 {[%clk 0:02:42.7]} 9. bxa5 {[%clk 0:02:25.2]} 9... Nxc3 {[%clk
0:02:41]} 10. Qb3 {[%clk 0:02:24.8]} 10... Ne4 {[%clk 0:02:35.5]} 11. e3 {[%clk
0:02:24.2]} 11... Rg8 {[%clk 0:02:33.9]} 12. Nf3 {[%clk 0:02:21.9]} 12... g5
{[%clk 0:02:33.6]} 13. Bg3 {[%clk 0:02:22]} 13... h5 {[%clk 0:02:33.5]} 14. h4
{[%clk 0:01:42.7]} 14... Nxg3 {[%clk 0:02:32.7]} 15. fxg3 {[%clk 0:01:43.6]}
15... g4 {[%clk 0:02:32.6]} 16. Ne5 {[%clk 0:01:42.4]} 16... Nd7 {[%clk
0:02:31.8]} 17. Nxd7 {[%clk 0:01:37.1]} 17... Bxd7 {[%clk 0:02:31.9]} 18. Bd3
{[%clk 0:01:36.2]} 18... Qf6 {[%clk 0:02:29.1]} 19. Rf1 {[%clk 0:01:36]} 19...
Qh6 {[%clk 0:02:28.8]} 20. Ke2 {[%clk 0:01:29.8]} 20... f5 {[%clk 0:02:25.2]}
21. Qc3 {[%clk 0:01:18.2]} 21... c6 {[%clk 0:02:18.3]} 22. a6 {[%clk 0:01:14]}
22... bxa6 {[%clk 0:02:11.9]} 23. bxc6 {[%clk 0:01:09.5]} 23... Bc8 {[%clk
0:02:11.9]} 24. c7 {[%clk 0:01:03.2]} 24... Ke7 {[%clk 0:01:43]} 25. Qc5+ {[%clk
0:00:48.2]} 25... Kf6 {[%clk 0:01:40.7]} 26. Qc6 {[%clk 0:00:42.6]} 26... Ra7
{[%clk 0:01:39.7]} 27. Rxf5+ {[%clk 0:00:40.9]} 27... Kg7 {[%clk 0:01:38.2]} 28.
Rg5+ {[%clk 0:00:41]} 28... Kh8 {[%clk 0:01:38.1]} 29. Rxg8+ {[%clk 0:00:32.6]}
29... Kxg8 {[%clk 0:01:39]} 30. Rf1 {[%clk 0:00:32.8]} 30... Qg7 {[%clk
0:01:31.8]} 31. Qe8+ {[%clk 0:00:31.9]} 1-0

[Event "Early-Titled-Tuesday-Blitz-February-20-2024"]
[Site "Chess.com"]
[Date "2024.02.20"]
[Round "4"]
[White "ajedrez-facil"]
[Black "The_Straightforward_Rook"]
[Result "1-0"]
[WhiteElo "2246"]
[BlackElo "2473"]
[TimeControl "180+1"]
[EndTime "8:37:25 PST"]
[Termination "ajedrez-facil won by checkmate"]

1. e4 {[%clk 0:02:42.9]} 1... c6 {[%clk 0:03:00.2]} 2. d4 {[%clk 0:02:42.7]}
2... d5 {[%clk 0:03:01.1]} 3. exd5 {[%clk 0:02:42.6]} 3... cxd5 {[%clk 0:03:02]}
4. Bd3 {[%clk 0:02:43]} 4... Nc6 {[%clk 0:03:01.8]} 5. Nf3 {[%clk 0:02:43.1]}
5... Qc7 {[%clk 0:03:02.5]} 6. O-O {[%clk 0:02:42.5]} 6... Bg4 {[%clk
0:03:02.5]} 7. c3 {[%clk 0:02:42]} 7... e6 {[%clk 0:02:59.1]} 8. Bg5 {[%clk
0:02:42.1]} 8... Bd6 {[%clk 0:02:58.3]} 9. Nbd2 {[%clk 0:02:39.9]} 9... Nge7
{[%clk 0:02:56.8]} 10. Bh4 {[%clk 0:02:40.4]} 10... Nf5 {[%clk 0:02:55]} 11.
Bxf5 {[%clk 0:02:40]} 11... Bxf5 {[%clk 0:02:55.9]} 12. Bg3 {[%clk 0:02:40.2]}
12... Bxg3 {[%clk 0:02:50.7]} 13. hxg3 {[%clk 0:02:41.1]} 13... h5 {[%clk
0:02:45.2]} 14. Re1 {[%clk 0:02:40.9]} 14... Kf8 {[%clk 0:02:43.9]} 15. Ne5
{[%clk 0:02:35.8]} 15... Nxe5 {[%clk 0:02:31.2]} 16. Rxe5 {[%clk 0:02:36.7]}
16... h4 {[%clk 0:02:30.6]} 17. g4 {[%clk 0:02:36.2]} 17... Bg6 {[%clk
0:02:30.5]} 18. Nf3 {[%clk 0:02:32.1]} 18... h3 {[%clk 0:02:30.1]} 19. g3 {[%clk
0:02:30.7]} 19... Be4 {[%clk 0:02:29.8]} 20. Kh2 {[%clk 0:02:21.3]} 20... g6
{[%clk 0:02:23.1]} 21. Ng5 {[%clk 0:02:18]} 21... Re8 {[%clk 0:02:05.7]} 22.
Nxe4 {[%clk 0:02:12.2]} 22... dxe4 {[%clk 0:02:06.6]} 23. Rxe4 {[%clk
0:02:09.3]} 23... Qc6 {[%clk 0:02:07.2]} 24. Qf3 {[%clk 0:02:02.5]} 24... f5
{[%clk 0:02:06.7]} 25. Rf4 {[%clk 0:02:00.7]} 25... Ke7 {[%clk 0:01:51.8]} 26.
Qxc6 {[%clk 0:01:59.6]} 26... bxc6 {[%clk 0:01:52.7]} 27. gxf5 {[%clk
0:01:58.4]} 27... gxf5 {[%clk 0:01:53.6]} 28. Re1 {[%clk 0:01:56.2]} 28... Kf6
{[%clk 0:01:49.9]} 29. b4 {[%clk 0:01:48.4]} 29... e5 {[%clk 0:01:42.1]} 30.
dxe5+ {[%clk 0:01:45]} 30... Rxe5 {[%clk 0:01:43]} 31. Rxe5 {[%clk 0:01:38.9]}
31... Kxe5 {[%clk 0:01:43.9]} 32. Rc4 {[%clk 0:01:39.6]} 32... Kd5 {[%clk
0:01:43.5]} 33. Rd4+ {[%clk 0:01:21.7]} 33... Ke5 {[%clk 0:01:42.4]} 34. Rc4
{[%clk 0:01:16.5]} 34... Kd5 {[%clk 0:01:41.8]} 35. Rh4 {[%clk 0:01:17.3]} 35...
Rxh4 {[%clk 0:01:40.9]} 36. gxh4 {[%clk 0:01:17.3]} 36... Kc4 {[%clk 0:01:41.5]}
37. h5 {[%clk 0:01:17.2]} 37... Kxc3 {[%clk 0:01:31.7]} 38. h6 {[%clk
0:01:17.5]} 38... Kxb4 {[%clk 0:01:32.6]} 39. h7 {[%clk 0:01:17.9]} 39... c5
{[%clk 0:01:33.5]} 40. h8=Q {[%clk 0:01:18.2]} 40... c4 {[%clk 0:01:34]} 41.
Qb2+ {[%clk 0:01:18.8]} 41... Kc5 {[%clk 0:01:33.8]} 42. Kxh3 {[%clk 0:01:17.1]}
42... a5 {[%clk 0:01:34.4]} 43. Kg3 {[%clk 0:01:16.4]} 43... Kd5 {[%clk
0:01:35.2]} 44. Kf4 {[%clk 0:01:16.6]} 44... c3 {[%clk 0:01:34]} 45. Qxc3 {[%clk
0:01:16.6]} 45... Kd6 {[%clk 0:01:34.9]} 46. Qxa5 {[%clk 0:01:16.6]} 46... Ke6
{[%clk 0:01:34.8]} 47. Qc5 {[%clk 0:01:15.2]} 47... Kd7 {[%clk 0:01:34.6]} 48.
Qb6 {[%clk 0:01:15.4]} 48... Kc8 {[%clk 0:01:34.6]} 49. Qa7 {[%clk 0:01:15.4]}
49... Kd8 {[%clk 0:01:34.6]} 50. Ke5 {[%clk 0:01:15.8]} 50... Ke8 {[%clk
0:01:35.5]} 51. Ke6 {[%clk 0:01:16.2]} 51... Kf8 {[%clk 0:01:36.4]} 52. Qf7#
{[%clk 0:01:16.4]} 1-0